Cogmind - Beta 17 @@@ ROGUE MODE // 2026.08.02 @ 21:14:05 Player: puppuppit Result: Destroyed by Reinforced Deuterium Engine chain reaction Performance ------------- Evolutions (0) 0 Regions Visited (4) 800 Robots Destroyed (49) 245 Value Destroyed (919) 919 Prototype IDs (0) 0 Alien Tech Used (0) 0 Bonus (50) 50 TOTAL SCORE: 2014 Bonus ------- Follower Combat Kills 50 Cogmind --------- Core Integrity 0/250 Matter 286/300 Energy 250/250 System Corruption 0% Temperature Cool (12) Movement Treading (240) Ox1 Location -9/Mines Parts ------- > --- POWER (1) -------- Ion Engine > --- PROPULSION (2) --- Light Treads Light Treads > --- UTILITY (2) ------ High-capacity Storage Unit Improved Terrain Scanner > --- WEAPON (2) ------- Light Assault Rifle Light Assault Rifle > --- INVENTORY (20) --- Nuclear Core Fission Core Light Treads Improved Heat Sink Medium Matter Pod (100) Medium Matter Pod (100) Large Matter Pod (150) Large Matter Pod (150) Large Matter Pod (150) Targeting Computer EM Shotgun EM Shotgun EM Shotgun Light Assault Rifle Light Assault Rifle Mini Grenade Launcher Mini Grenade Launcher Mini Grenade Launcher Peak State ------------ > --- POWER ------------ Ion Engine > --- PROPULSION ------- Light Treads Light Treads > --- UTILITY ---------- Large Storage Unit Improved Terrain Scanner > --- WEAPON ----------- EM Shotgun Mini Grenade Launcher > --- INVENTORY -------- Light Treads Light Treads Large Storage Unit Medium Matter Pod Large Matter Pod Targeting Computer EM Shotgun EM Shotgun EM Shotgun Light Assault Rifle Light Assault Rifle Light Assault Rifle Light Assault Rifle Mini Grenade Launcher Mini Grenade Launcher [Rating: 13] Favorites ----------- Power Ion Engine Engine Ion Engine Propulsion Light Treads Treads Light Treads Utility Improved Terrain Scanner Device Improved Terrain Scanner Storage Large Storage Unit Weapon Light Assault Rifle Energy Gun EM Shotgun Energy Cannon Light EM Pulse Cannon Ballistic Gun Light Assault Rifle Launcher Mini Grenade Launcher Build | -11 -10 -10 -10 -9 ------- Run | Yrd Mat Min Exi Min Slots Evolved . | . . . . . Power . | . . . . . Propulsion . | . . . . . Utility . | . . . . . Weapon . | . . . . . Parts Attached 19 | 7 9 . 1 2 Power 1 | 1 . . . . Engine 1 | 1 . . . . Core . | . . . . . Reactor . | . . . . . Propulsion 3 | 2 . . . 1 Treads 3 | 2 . . . 1 Leg . | . . . . . Wheel . | . . . . . Hover . | . . . . . Flight . | . . . . . Utility 6 | 3 2 . 1 . Device 1 | 1 . . . . Storage 5 | 2 2 . 1 . Processor . | . . . . . Hackware . | . . . . . Protection . | . . . . . Artifact . | . . . . . Weapon 9 | 1 7 . . 1 Energy Gun 2 | . 2 . . . Energy Cannon 2 | . 2 . . . Ballistic Gun 3 | 1 1 . . 1 Ballistic Cannon . | . . . . . Launcher 2 | . 2 . . . Special Weapon . | . . . . . Impact Weapon . | . . . . . Slashing Weapon . | . . . . . Piercing Weapon . | . . . . . Special Melee Weapon . | . . . . . Unidentified Prototypes . | . . . . . Parts Lost 2 | . 1 . . 1 Power . | . . . . . Propulsion 1 | . . . . 1 Utility . | . . . . . Weapon 1 | . 1 . . . Highest Loss Streak 1 | . 1 . . 1 To Critical Strikes . | . . . . . Average Backups 12 | . 9 14 15 19 Power . | . . . 1 3 Propulsion 1 | . 1 2 2 1 Utility 3 | . 2 4 5 6 Weapon 6 | . 5 8 6 8 Tool/Special . | . . . . . Unused Backups 19 | . 2 . 2 15 Power 2 | . . . . 2 Propulsion 1 | . . . . 1 Utility 9 | . . . 2 7 Weapon 7 | . 2 . . 5 Tool/Special . | . . . . . Average Slot Usage (%) 98 | . 97 100 100 100 Engine 14 | . 14 14 14 14 Treads 27 | . 27 28 28 28 Device 14 | . 14 14 14 14 Storage 14 | . 14 14 14 14 Energy Gun 9 | . 8 14 14 . Energy Cannon 2 | . 4 . . . Ballistic Gun 14 | . 11 14 14 26 Peak Build Rating 13 | 8 13 12 13 13 Average Rating 10 | 5 10 11 12 12 On Entrance 8 | . 8 11 12 13 Avg Prop Armor Cover (%) . | . . . . . Naked Turns . | . . . . . Heaviest Build 50 | 16 34 30 50 50 Greatest Support 40 | 40 40 40 40 40 Greatest Overweight (x) 1 | . . . 1 1 Average Overweight (x) . | . . . . 1 Largest Inventory Capacity 20 | 8 15 15 20 20 Average Capacity 15 | 7 13 15 18 20 Most Carried 20 | 1 15 15 19 20 Average Carried 12 | . 10 14 15 19 Final Capacity 20 | 8 15 15 20 20 Final Carried 19 | 1 14 15 19 18 Class Distribution -------------------- 100% | Mutant Dominant Class ---------------- Mutant | -10/Materials Mutant | -10/Mines Mutant | -10/Exiles Mutant | -9/Mines Resources | -11 -10 -10 -10 -9 ----------- Run | Yrd Mat Min Exi Min Matter Collected 1113 | 405 537 107 30 34 Remotely . | . . . . . Salvage Created 1746 | 136 1453 115 . 42 Parts 103 | 11 82 8 . 2 Haulers Intercepted 2 | . 2 . . . Recyclers Shooed 2 | . 1 1 . . Parts Field Recycled . | . . . . . Retrieved Matter . | . . . . . Parts Self-Destructed . | . . . . . Prevented . | . . . . . Parts Restored . | . . . . . Kills | -11 -10 -10 -10 -9 ------- Run | Yrd Mat Min Exi Min Combat Hostiles Destroyed 21 | . 18 2 . 1 Guns 13 | . 10 2 . 1 Cannons 3 | . 3 . . . AOE 5 | . 5 . . . Classes Destroyed 8 | 3 5 . . . Worker 7 | 2 5 . . . Builder 5 | . 4 1 . . Tunneler 5 | 2 3 . . . Hauler 2 | . 2 . . . Recycler 6 | 1 5 . . . Watcher 3 | . 3 . . . Swarmer 3 | . 3 . . . Grunt 18 | . 15 2 . 1 Best Kill Streak 5 | 3 5 3 . 1 Combat Bots Only 3 | . 3 2 . 1 Max Kills in Single Turn 2 | 1 2 2 . 1 Gunslinging . | . . . . . Exploded 2 | . 2 . . . Melee . | . . . . . Uniques/NPCs Destroyed . | . . . . . Combat | -11 -10 -10 -10 -9 -------- Run | Yrd Mat Min Exi Min Hostile Shots Fired 79 | . 64 8 . 7 Missed 25 | . 21 2 . 2 Hits 54 | . 43 6 . 5 Melee 1 | . . . . 1 Projectile 53 | . 43 6 . 4 Critical Strikes 2 | . 2 . . . Damage Taken 875 | . 659 76 . 140 Core 307 | . 180 54 . 73 Absorbed by Shields . | . . . . . Regen/Repaired (Parts) 98 | . 98 . . . Core Remaining (%) 100 | 100 . . . . Volleys Fired 139 | 44 83 7 . 5 Largest 2 | 1 2 2 . 2 Hottest 112 | 20 112 65 . 40 Shots Fired 208 | 44 140 14 . 10 Gun 170 | 44 102 14 . 10 Cannon 33 | . 33 . . . Launcher 5 | . 5 . . . Special . | . . . . . Kinetic 120 | 44 59 7 . 10 Thermal . | . . . . . Explosive 5 | . 5 . . . Electromagnetic 83 | . 76 7 . . Robot Hit Streak 19 | 8 19 6 . 8 Robot Miss Streak 4 | 3 4 1 . 2 Penetration Max . | . . . . . Secondary Targets 1 | . 1 . . . Max Gunslinging Chain 1 | . 1 . . . Shots Hit Robots 137 | 30 89 12 . 6 Core Hits 83 | 9 62 7 . 5 Critical Kills . | . . . . . Critical Parts Destroyed 1 | . 1 . . . Critical Strikes 1 | . 1 . . . Destroy 1 | . 1 . . . Melee Attacks . | . . . . . Impact . | . . . . . Slashing . | . . . . . Piercing . | . . . . . Sneak Attacks . | . . . . . Combat Hostiles . | . . . . . Follow-up Attacks . | . . . . . Damage Inflicted 2420 | 248 1900 211 . 61 Guns 1224 | 248 750 165 . 61 Cannons 541 | . 541 . . . Explosions 652 | . 606 46 . . Melee . | . . . . . Ramming 3 | . 3 . . . Kinetic 649 | 248 290 50 . 61 Thermal 307 | . 261 46 . . Explosive 345 | . 345 . . . Electromagnetic 1116 | . 1001 115 . . Impact . | . . . . . Slashing . | . . . . . Piercing . | . . . . . Highest Corruption . | . . . . . Average Corruption . | . . . . . Corruption Purged . | . . . . . Corruption Blocked . | . . . . . Overload Shots . | . . . . . Overflow Damage 41 | . 41 . . . Projectiles 23 | . 23 . . . Explosions 18 | . 18 . . . Melee . | . . . . . Knockbacks . | . . . . . Impact . | . . . . . Kinetic . | . . . . . Secondary . | . . . . . Self-Inflicted Damage 158 | . 158 . . . Shots 5 | . 5 . . . Rammed . | . . . . . Targets Rammed 1 | . 1 . . . Kicked . | . . . . . Crushed 1 | . 1 . . . Highest Temperature 193 | . 193 124 . . Average Temperature 43 | . 41 65 . . Received Heat Transfer 339 | . 276 45 . 18 Siege Activations . | . . . . . Martial Activations . | . . . . . Shielding Activations . | . . . . . Robots Disrupted . | . . . . . Combat Hostiles . | . . . . . Robots Corrupted . | . . . . . Combat Hostiles . | . . . . . Parts Fried 5 | . 5 . . . Impact Corruptions . | . . . . . Robots Melted . | . . . . . Combat Hostiles . | . . . . . Parts Melted . | . . . . . Heat Transferred 450 | . 400 50 . . Parts Sabotaged . | . . . . . Parts Stolen . | . . . . . Parts Stripped . | . . . . . Power Chain Reactions 7 | . 6 1 . . Alert | -11 -10 -10 -10 -9 ------- Run | Yrd Mat Min Exi Min Maximum Alert Level 1 | . 1 . . . Low Security (%) 86 | 100 80 100 . 100 Level 1 13 | . 19 . . . Level 2 . | . . . . . Level 3 . | . . . . . Level 4 . | . . . . . Level 5 . | . . . . . High Security . | . . . . . Max Security . | . . . . . Peak Influence 355 | 10 355 163 . 80 Initial 132 | . . 132 . . Average 87 | 1 109 122 . 14 Influence Increases 970 | 25 804 61 . 80 Destroy 0b10 Robot/C 460 | . 360 40 . 60 Destroy 0b10 Robot/NC 140 | 25 110 5 . . Destroy Leader 100 | . 80 10 . 10 Allied During Kill 10 | . . . . 10 Successful Hack 40 | . 40 . . . Select Force Hacks 30 | . 30 . . . Disable Machine 105 | . 105 . . . Destroy Structure 70 | . 64 6 . . Lose Combat Pursuer 15 | . 15 . . . Influence Decreases 970 | 25 464 318 83 80 Entered New Map 291 | . . 208 83 . Time Decay 669 | 25 454 110 . 80 Lost Part 10 | . 10 . . . Squads Dispatched 4 | . 4 . . . Investigation 2 | . 2 . . . Extermination . | . . . . . Reinforcement 2 | . 2 . . . Assault . | . . . . . Garrison . | . . . . . Intercept . | . . . . . Searches Triggered . | . . . . . Construction Impeded . | . . . . . Haulers Reinforced . | . . . . . Active Scanning Responses . | . . . . . Cargo Convoy Interrupts . | . . . . . Stealth | -11 -10 -10 -10 -9 --------- Run | Yrd Mat Min Exi Min Distress Signals 3 | . 2 . . 1 Communications Jammed . | . . . . . Distress Signals . | . . . . . Times Spotted 29 | . 21 2 . 6 Peak Tracking Total 3 | . 3 2 . 3 Tactical Retreats 1 | . 1 . . . Traps | -11 -10 -10 -10 -9 ------- Run | Yrd Mat Min Exi Min Traps Triggered . | . . . . . Indirectly . | . . . . . Trap Hack Attempts . | . . . . . Triggered . | . . . . . Disarmed . | . . . . . Reprogrammed . | . . . . . Reused . | . . . . . Traps Extracted . | . . . . . Installed . | . . . . . Triggered . | . . . . . Machines | -11 -10 -10 -10 -9 ---------- Run | Yrd Mat Min Exi Min Machines Disabled 7 | . 7 . . . Max in Single Turn 1 | . 1 . . . Machines Repaired . | . . . . . Machines Dismantled . | . . . . . Machines Sabotaged . | . . . . . Overloaded Fab Kills . | . . . . . Hacking | -11 -10 -10 -10 -9 --------- Run | Yrd Mat Min Exi Min Machines Accessed 10 | . 9 . 1 . Terminals 7 | . 7 . . . Fabricators . | . . . . . Repair Stations 1 | . 1 . . . Recycling Units 1 | . 1 . . . Scanalyzers . | . . . . . Garrison Access . | . . . . . Total Hacks 51 | . 28 . 23 . Successful 36 | . 13 . 23 . Failed 15 | . 15 . . . Catastrophic . | . . . . . Database Lockouts . | . . . . . Manual 25 | . 25 . . . Terminals 24 | . 24 . . . Fabricators . | . . . . . Repair Stations 2 | . 2 . . . Recycling Units 2 | . 2 . . . Scanalyzers . | . . . . . Garrison Access . | . . . . . Terminal Hacks 25 | . 2 . 23 . Record 23 | . . . 23 . Robot Analysis 2 | . 2 . . . Fabricator Hacks . | . . . . . Repair Station Hacks 2 | . 2 . . . Scan Component 1 | . 1 . . . Repair 1 | . 1 . . . Recycling Unit Hacks . | . . . . . Scanalyzer . | . . . . . Garrison Access Hacks . | . . . . . Unauthorized Hacks 9 | . 9 . . . Terminals 8 | . 8 . . . Botnet 4 | . 4 . . . Skim 4 | . 4 . . . Fabricators . | . . . . . Repair Stations . | . . . . . Recycling Units 1 | . 1 . . . Tunnel 1 | . 1 . . . Scanalyzers . | . . . . . Garrison Access . | . . . . . Data Cores Recovered . | . . . . . Used . | . . . . . Hacking Detections 8 | . 8 . . . Full Trace Events . | . . . . . Feedback Events . | . . . . . Feedback Blocked . | . . . . . Robot Schematics Acquired . | . . . . . Robots Built . | . . . . . Authchips . | . . . . . Time . | . . . . . Total Robot Build Rating . | . . . . . Part Schematics Acquired . | . . . . . Parts Built . | . . . . . Authchips . | . . . . . Time . | . . . . . Total Part Build Rating . | . . . . . Part Studies Acquired . | . . . . . Parts Repaired 1 | . 1 . . . Time 26 | . 26 . . . Parts Recycled . | . . . . . Recycled Matter . | . . . . . Retrieved Matter . | . . . . . Retrieved Components . | . . . . . Parts Scanalyzed . | . . . . . Part Schematics Acquired . | . . . . . Parts Damaged . | . . . . . Bothacking | -11 -10 -10 -10 -9 ------------ Run | Yrd Mat Min Exi Min Used RIF Installer . | . . . . . Robots Hacked . | . . . . . Non-combat . | . . . . . Combat . | . . . . . Robot Hacks Applied . | . . . . . Relay Couplers Released . | . . . . . Fabnet Peak Effective % . | . . . . . Robots Rewired . | . . . . . Allies Hacked . | . . . . . Hacks Repelled . | . . . . . Allies | -11 -10 -10 -10 -9 -------- Run | Yrd Mat Min Exi Min Total Allies 5 | . . 2 . 3 Largest Group 3 | . . 2 2 3 Highest-Rated Group 45 | . . 45 45 40 Highest-Rated Ally 31 | . . 31 31 16 Total Orders . | . . . . . Ally Attacks 30 | . . . . 30 Total Damage 272 | . . . . 272 Kills 6 | . . . . 6 Allies Corrupted . | . . . . . Allies Melted . | . . . . . Intel | -11 -10 -10 -10 -9 ------- Run | Yrd Mat Min Exi Min Active Infowar (turns) 3166 | 42 1797 223 669 435 Terrain 3166 | 42 1797 223 669 435 Robot Analysis Total 2 | . 2 . . . Derelict Logs Recovered 1 | . . 1 . . Drone Launches . | . . . . . Drone Recoveries . | . . . . . Exploration | -11 -10 -10 -10 -9 ------------- Run | Yrd Mat Min Exi Min Turns Passed 3317 | 193 1797 223 669 435 Spaces Moved 1554 | 67 938 127 303 119 Core 4 | 4 . . . . Treads 1550 | 63 938 127 303 119 Legs . | . . . . . Wheels . | . . . . . Hover . | . . . . . Flight . | . . . . . Fastest Speed 50 | 50 160 160 160 240 Average Speed 177 | 153 160 160 217 240 Slowest Speed 240 | 160 160 160 240 240 Overloaded Moves . | . . . . . Propulsion Burnouts . | . . . . . Robots Hopped . | . . . . . Potential Cave-ins . | . . . . . Cave-ins Triggered . | . . . . . Exploration Rate (%) 39 | 4 99 17 60 18 Regions Visited 4 Branch Regions 3 Pre-discovered Areas 2 | . 1 . 1 . Known Exits Taken . | . . . . . Unknown Exits Taken 4 | 1 1 1 1 . Scrap Searched 1 | . . 1 . . Spaces Dug . | . . . . . Terrain Destroyed 64 | . 58 6 . . Melee . | . . . . . Projectile . | . . . . . AOE 64 | . 58 6 . . Terrain Rammed . | . . . . . Walls Destroyed . | . . . . . Machines Disabled . | . . . . . Actions | -11 -10 -10 -10 -9 --------- Run | Yrd Mat Min Exi Min Total 1934 | 119 1104 134 318 259 Wait 168 | . 39 . . 129 Move 1550 | 66 937 126 302 119 Hop . | . . . . . Pick Up 31 | 1 19 1 9 1 Fast Attach 8 | 7 1 . . . Attach 4 | . 3 . . 1 Detach 1 | . 1 . . . Swap 17 | . 13 . 1 3 Drop 15 | 1 7 . 6 1 Fire 139 | 44 83 7 . 5 Melee . | . . . . . Ram . | . . . . . Kick . | . . . . . Crush 1 | . 1 . . . Escape Stasis . | . . . . . Rewire . | . . . . . Trap . | . . . . . Miscellaneous . | . . . . . Route ------- -11/Scrapyard -10/Materials (discovered 4 exits: [*Mat x3] / [*Min]) -10/Mines (discovered 2 exits: *Exi / [*Sub]) -10/Exiles -9/Mines History --------- Turn | Location | Event 3 | -11/Scrapyard | Discovered new exit (range 16) 194 | -11/Scrapyard | Entered Materials 309 | -10/Materials | Build established: Mutant 352 | -10/Materials | Discovered new exit (range 13) 1135 | -10/Materials | Repaired Lgt. Treads 1211 | -10/Materials | Discovered new exit (range 4) 1294 | -10/Materials | Discovered new exit (range 8) 1531 | -10/Materials | Discovered new exit (range 16) 1643 | -10/Materials | Core integrity fell below 50% 1991 | -10/Materials | Entered Mines 2014 | -10/Mines | Learned Materials non-interactive machine intel 2018 | -10/Mines | Met a Derelict bent on vengeance 2053 | -10/Mines | Core integrity fell below 20% 2108 | -10/Mines | Discovered new exit (range 10) 2206 | -10/Mines | Deemed a non-threat by the Exiles lab entrance 2206 | -10/Mines | Discovered new exit (range 5) 2214 | -10/Mines | Entered Exiles 2214 | -10/Exiles | Accompanied by 2 allies 2244 | -10/Exiles | Led the pair of lost Derelicts to a safe place 2278 | -10/Exiles | Met 8R-AWN 2304 | -10/Exiles | Met EX-HEX 2426 | -10/Exiles | Met EX-DEC 2648 | -10/Exiles | Learned location of Zion (-7) 2708 | -10/Exiles | Met EX-BIN 2852 | -10/Exiles | Discovered new exit (range 14) 2883 | -10/Exiles | Entered Mines 2888 | -9/Mines | Assisted by bots powering up and referring to "LRC-V3" 3061 | -9/Mines | Assembled infested the area 3318 | -9/Mines | Destroyed by Reinforced Deuterium Engine chain reaction Last Messages --------------- GOAL=ESCAPE 02888_ Trooper 2a: "Hello LRC-V3. What is your command?" 02888_ Mercenary 2a: "Hello LRC-V3. What is your command?" 02888_ Trooper 2b: "Hello LRC-V3. What is your command?" 02906_ G-34 Mercenary destroyed. 02916_ Mercenary 2a destroyed. 02917_ G-47 Trooper destroyed. 02920_ Acquired 34 matter. 02927_ Acquired Imp. Heat Sink. 03061_ ALERT: Infestation in the mines, dispatching Demolisher response squad. 03287_ Lgt. Treads destroyed. 03289_ as-25397 suffers critical hit (Burn). 03291_ as-25397 destroyed. 03312_ Trooper 2b destroyed. 03315_ Dropped Rigged Rnf. Deuterium Engine. 03318_ Rigged Rnf. Deuterium Engine explodes. Map ----- +----------------------------------------------------+ | ????????????????????##??#??#?#?????##????#?#??# | | ???????????????????????????#????????????###?#?# | | ?????????????????????##????????#??##???????#??# | | ?????????????????????#?????###???#?##????##?### | | ????????????????????#????#????#?#???????????## | | ???????????????????????#?#?#????#??#######?## | | ???????????????????#??????#?#??##### #### | | ??????????????????????????#???#?# #??# ! | | ?????????????????????#??#???#??## #### [%= | | ????????????????????????????????# ###= | | ??????????????????????????##?#?##### =%= | | ?????????????????????#???????#?#?#?# =%**! | | ????????????????????????############% ### | | ????????????????????????# ### | | ????????????????????????# ######## # ## | | ???????????????????????## #?#???## # ## | | ???????????????#???#???## ##?????# #### ### | | ????????????????????????# #????### #??# ### # | | ????????????? ######### ##???#?# #### ### ## | | ?????????????? !%= #??##?# ## ##? | | ???????????????????%= a ####??# ####### ### | | ??????????????????? ???## =%=##??# ####??## ###? | | ?????????????? ?????????# = #### ############??? | | ????????????????????#???#a;# ## ##???????#??? | | ????????????????????#???# ;## % #?#???#????? | | ????????????????????#???#@;?## ##?#???????# | | ????????????????????????# #?### ## ###????##?#?? | | ??????????????????#?????# #???####?###?????#?????? | | ????????????????????????# ?????????????#??#?????? | | ???????????????????????? ????#????????????#????? | | ???????????????#???????? < ??????????????????????? | | ???????????????????????? ????????#?????????????? | | ???????????????????????? ????????#??????????#?? | | ????????????????????????## ?????????????????????? | | ??????????????????????????##?????????????????????? | | ??????????????????????????#??????????????????????? | | ???????????????????????????#?????????????????????? | | | | | | | | | | | | | | | | | | | | | | | | | | | +----------------------------------------------------+ Best States ------------- Heat Dissipation 25 Energy Generation 10 Energy Capacity 250 Matter Stores 300 Matter Capacity 300 Sight Range 16 Terrain Scan Range 16 Terrain Scan Density 10 Evasion (%) 40 Recoil Reduction 2 Item Schematics ----------------- None Robot Schematics ------------------ None Fabricated ------------ Nothing Repaired ---------- Lgt. Treads | 30% | -10/Materials Studied --------- None Alien Tech Used ----------------- None Achievements -------------- None Challenges ------------ None Game ------ Seed MetafiberTowerRedirector Manual? 0 Play Time 00:13:46 Cumulative 738.5 hours Start 2026.08.02 @ 21:00:37 End 2026.08.02 @ 21:14:05 Sessions 1 Manual Loads 0 Difficulty Rogue Special Mode None Game No. 364 Rogue 364 Adventurer 0 Explorer 0 Win Type - Total 7 Types 3/0/2/1/0/0/0/0/0/1 Lore% 87 Gallery% 76 Achievement% 60 Wizard Run 0 Options --------- Layout 2 ASCII 0 Keyboard 1 Movement Vi Keybinds 0 Fullscreen 1 Font 16/Proggy Map View 55x47 Zoom Use 0% Tactical HUD 1 Map Filters NONE Filters NONE Steam 0 RUN: f67e625d-82ea-42d5-ba6b-ea4da939b415